Cogmind - Beta 12 @@@ ROGUE MODE // 2023.12.10 @ 23:10:37 Player: Lobster Glut Result: Destroyed by S-27 Virus with Autogun Performance ------------- Evolutions (3) 1500 Regions Visited (4) 800 Robots Destroyed (46) 230 Value Destroyed (1472) 1472 Prototype IDs (1) 20 Alien Tech Used (0) 0 Bonus (49) 49 TOTAL SCORE: 4071 Bonus ------- High Alert Combat Kills 49 Cogmind --------- Core Integrity 0/700 Matter 61/300 Energy 99/100 System Corruption 0% Temperature Cool (0) Movement Core (50) Location -7/Factory Parts ------- > --- POWER (3) -------- (None) > --- PROPULSION (4) --- (None) > --- UTILITY (3) ------ Machine Analyzer > --- WEAPON (3) ------- (None) > --- INVENTORY (5) ---- Light Nuclear Core Peak State ------------ > --- POWER ------------ Light Angular Momentum Engine > --- PROPULSION ------- Aluminum Leg Aluminum Leg Aluminum Leg > --- UTILITY ---------- Heat Sink Medium Storage Unit Machine Analyzer > --- WEAPON ----------- Shotgun Assault Cannon Flak Cannon > --- INVENTORY -------- Light Ion Engine Light Ion Engine Small Storage Unit Recoil Stabilizer Light Armor Plating Small Laser Particle Gun Heavy Assault Rifle Grenade Launcher [Rating: 22] Favorites ----------- Power Light Ion Engine Engine Light Ion Engine Power Core Light Nuclear Core Propulsion Aluminum Leg Leg Aluminum Leg Utility Medium Storage Unit Device Heat Sink Storage Medium Storage Unit Processor Machine Analyzer Protection Medium Armor Plating Weapon Advanced Beam Cannon Energy Gun Particle Gun Energy Cannon Advanced Beam Cannon Ballistic Gun Heavy Assault Rifle Ballistic Cannon Flak Cannon Build | -11 -10 -9 -8 -7 ------- Run | Jun Mat Mat Mat Fac Slots Evolved 6 | . . 2 2 2 Power 2 | . . . 1 1 Propulsion 2 | . . 2 . . Utility 1 | . . . 1 . Weapon 1 | . . . . 1 Parts Attached 45 | 6 3 12 9 15 Power 11 | 1 1 1 3 5 Engine 8 | 1 1 1 3 2 Core 3 | . . . . 3 Reactor . | . . . . . Propulsion 9 | 2 . 4 1 2 Treads . | . . . . . Leg 9 | 2 . 4 1 2 Wheel . | . . . . . Hover . | . . . . . Flight . | . . . . . Utility 12 | 1 . 5 3 3 Device 2 | . . . 1 1 Storage 4 | 1 . 1 1 1 Processor 1 | . . . 1 . Hackware . | . . . . . Protection 5 | . . 4 . 1 Artifact . | . . . . . Weapon 13 | 2 2 2 2 5 Energy Gun 1 | . . . . 1 Energy Cannon 3 | . . 2 . 1 Ballistic Gun 6 | 2 2 . 1 1 Ballistic Cannon 3 | . . . 1 2 Launcher . | . . . . . Special Weapon . | . . . . . Impact Weapon . | . . . . . Slashing Weapon . | . . . . . Piercing Weapon . | . . . . . Special Melee Weapon . | . . . . . Unidentified Prototypes 1 | . . 1 . . Parts Lost 22 | . . 2 3 17 Power 6 | . . 1 . 5 Propulsion 7 | . . . 2 5 Utility 4 | . . 1 1 2 Weapon 5 | . . . . 5 Highest Loss Streak 8 | . . 1 2 8 To Critical Strikes . | . . . . . Average Slot Usage (%) 76 | . 84 92 84 54 Engine 10 | . 13 10 14 5 Leg 27 | . 28 38 32 14 Device 2 | . . . 3 5 Storage 8 | . 14 7 9 5 Processor 3 | . . . 6 7 Protection 3 | . . 13 1 . Energy Cannon 6 | . . 15 9 . Ballistic Gun 8 | . 28 6 4 3 Ballistic Cannon 3 | . . . 4 7 Naked Turns . | . . . . . Heaviest Build 38 | 14 16 35 38 34 Greatest Support 40 | 20 20 40 40 30 Greatest Overweight (x) 2 | 1 . 1 1 2 Average Overweight (x) . | . . . . . Largest Inventory Capacity 10 | 8 8 10 10 10 Average Capacity 8 | 7 8 8 10 9 Most Carried 10 | 8 8 9 10 10 Average Carried 7 | 5 6 5 7 7 Final Capacity 10 | 8 8 10 10 5 Final Carried 10 | 6 8 9 10 1 Class Distribution -------------------- 52% | Scavenger-Mutant 44% | Mutant Dominant Class ---------------- Mutant | -10/Materials Mutant | -9/Materials Scavenger-Mutant | -8/Materials Scavenger-Mutant | -7/Factory Resources | -11 -10 -9 -8 -7 ----------- Run | Jun Mat Mat Mat Fac Matter Collected 902 | 201 50 240 196 215 Remotely . | . . . . . Salvage Created 1711 | . 98 724 342 547 Parts 88 | . 4 44 21 19 Haulers Intercepted 1 | . . . . 1 Recyclers Shooed . | . . . . . Parts Field Recycled . | . . . . . Retrieved Matter . | . . . . . Parts Self-Destructed . | . . . . . Prevented . | . . . . . Kills | -11 -10 -9 -8 -7 ------- Run | Jun Mat Mat Mat Fac Combat Hostiles Destroyed 41 | . 2 18 9 12 Guns 13 | . 2 6 1 4 Cannons 25 | . . 12 7 6 Classes Destroyed 9 | . 1 5 2 1 Builder 1 | . . . 1 . Hauler 1 | . . . . 1 Recycler 2 | . . 1 . 1 Watcher 1 | . . 1 . . Swarmer 12 | . . 7 3 2 Grunt 21 | . 2 7 3 9 Brawler 2 | . . 2 . . Sentry 5 | . . 2 2 1 Hunter 1 | . . . 1 . Best Kill Streak 6 | . 2 6 4 4 Combat Bots Only 6 | . 2 6 3 3 Max Kills in Single Turn 2 | . 1 1 2 1 Gunslinging . | . . . . . Exploded . | . . . . . Melee . | . . . . . Uniques/NPCs Destroyed . | . . . . . Combat | -11 -10 -9 -8 -7 -------- Run | Jun Mat Mat Mat Fac Damage Taken 3644 | . 57 624 958 2005 Core 885 | . . 60 117 708 Absorbed by Shields . | . . . . . Regen/Repaired (Parts) 147 | . . 147 . . Core Remaining (%) 90 | 100 100 85 78 . Volleys Fired 133 | . 9 48 27 49 Largest 3 | . 2 2 2 3 Hottest 145 | . 46 136 136 145 Shots Fired 234 | . 18 69 54 93 Gun 92 | . 18 32 10 32 Cannon 142 | . . 37 44 61 Launcher . | . . . . . Special . | . . . . . Kinetic 142 | . 18 32 20 72 Thermal 92 | . . 37 34 21 Explosive . | . . . . . Electromagnetic . | . . . . . Robot Hit Streak 12 | . 4 10 12 11 Robot Miss Streak 7 | . 2 2 5 7 Penetration Max . | . . . . . Secondary Targets 1 | . 1 . . . Max Gunslinging Chain 1 | . 1 . . . Shots Hit Robots 163 | . 11 46 37 69 Core Hits 88 | . 4 22 23 39 Critical Kills 4 | . 1 . 1 2 Critical Parts Destroyed . | . . . . . Critical Strikes 7 | . 1 . 1 5 Burn 1 | . . . . 1 Meltdown 2 | . . . 1 1 Destroy 2 | . 1 . . 1 Blast 2 | . . . . 2 Melee Attacks . | . . . . . Impact . | . . . . . Slashing . | . . . . . Piercing . | . . . . . Sneak Attacks . | . . . . . Combat Hostiles . | . . . . . Follow-up Attacks . | . . . . . Damage Inflicted 3013 | . 171 840 696 1306 Guns 960 | . 171 287 100 402 Cannons 2041 | . . 553 591 897 Explosions . | . . . . . Melee . | . . . . . Ramming 12 | . . . 5 7 Kinetic 1661 | . 171 287 262 941 Thermal 1340 | . . 553 429 358 Explosive . | . . . . . Electromagnetic . | . . . . . Impact . | . . . . . Slashing . | . . . . . Piercing . | . . . . . Highest Corruption 1 | . . . 1 . Average Corruption 1 | . . . 1 . Corruption Purged . | . . . . . Corruption Blocked . | . . . . . Effects 1 | . . . 1 . Parts Fused 1 | . . . 1 . Overload Shots . | . . . . . Overflow Damage 1 | . . . . 1 Projectiles 1 | . . . . 1 Explosions . | . . . . . Melee . | . . . . . Knockbacks 15 | . . . 2 13 Impact 1 | . . . 1 . Kinetic 14 | . . . 1 13 Secondary . | . . . . . Self-Inflicted Damage 3 | . . . . 3 Shots . | . . . . . Rammed 1 | . . . . 1 Targets Rammed 2 | . . . 1 1 Kicked 1 | . . . 1 . Crushed . | . . . . . Highest Temperature 594 | . 22 394 594 334 Average Temperature 163 | . 9 154 226 89 Received Heat Transfer 1185 | . 51 204 291 639 Effects 16 | . . 3 12 1 Shutdowns 6 | . . 1 5 . Energy Bleed 3 | . . . 3 . Interference 3 | . . 1 2 . Matter Decay 1 | . . . 1 . Short Circuit 3 | . . 1 1 1 Siege Activations . | . . . . . Robots Corrupted . | . . . . . Combat Hostiles . | . . . . . Parts Fried . | . . . . . Impact Corruptions . | . . . . . Robots Melted 3 | . . . 1 2 Combat Hostiles 3 | . . . 1 2 Parts Melted 5 | . . 2 . 3 Heat Transferred 2620 | . . 999 777 844 Parts Sabotaged . | . . . . . Parts Stolen . | . . . . . Parts Stripped . | . . . . . Power Chain Reactions . | . . . . . Missiles Intercepted . | . . . . . Alert | -11 -10 -9 -8 -7 ------- Run | Jun Mat Mat Mat Fac Peak Influence 475 | . 85 475 457 249 Initial 130 | . . 35 118 130 Average 177 | . 28 264 278 137 Maximum Alert Level 2 | . . 2 2 1 Low Security (%) 65 | 100 100 35 39 85 Level 1 23 | . . 42 37 14 Level 2 10 | . . 22 23 . Level 3 . | . . . . . Level 4 . | . . . . . Level 5 . | . . . . . High Security . | . . . . . Max Security . | . . . . . Squads Dispatched 4 | . . 1 2 1 Investigation 1 | . . . 1 . Extermination . | . . . . . Reinforcement 3 | . . 1 1 1 Assault . | . . . . . Garrison . | . . . . . Intercept . | . . . . . Searches Triggered . | . . . . . Construction Impeded . | . . . . . Haulers Reinforced . | . . . . . Active Scanning Responses . | . . . . . Cargo Convoy Interrupts . | . . . . . Stealth | -11 -10 -9 -8 -7 --------- Run | Jun Mat Mat Mat Fac Distress Signals 3 | . . 1 . 2 Communications Jammed . | . . . . . Distress Signals . | . . . . . Times Spotted 68 | . 5 20 19 24 Peak Tracking Total 7 | . 2 5 5 7 Tactical Retreats 5 | . . . 2 3 Traps | -11 -10 -9 -8 -7 ------- Run | Jun Mat Mat Mat Fac Traps Triggered 1 | . . . 1 . Indirectly . | . . . . . Trap Hack Attempts . | . . . . . Triggered . | . . . . . Disarmed . | . . . . . Reprogrammed . | . . . . . Reused . | . . . . . Traps Extracted . | . . . . . Installed . | . . . . . Triggered . | . . . . . Machines | -11 -10 -9 -8 -7 ---------- Run | Jun Mat Mat Mat Fac Machines Disabled 2 | . . . 1 1 Max in Single Turn 1 | . . . 1 1 Garrison Access 1 | . . . 1 . Machines Repaired . | . . . . . Machines Sabotaged . | . . . . . Overloaded Fab Kills . | . . . . . Hacking | -11 -10 -9 -8 -7 --------- Run | Jun Mat Mat Mat Fac Machines Accessed 8 | . 3 3 2 . Terminals 5 | . 2 2 1 . Fabricators . | . . . . . Repair Stations 1 | . . 1 . . Recycling Units 1 | . 1 . . . Scanalyzers . | . . . . . Garrison Access 1 | . . . 1 . Total Hacks 33 | . 13 16 4 . Successful 21 | . 10 8 3 . Failed 12 | . 3 8 1 . Catastrophic 3 | . . 2 1 . Database Lockouts . | . . . . . Manual 1 | . 1 . . . Terminals 17 | . 5 9 3 . Fabricators . | . . . . . Repair Stations 7 | . . 7 . . Recycling Units 8 | . 8 . . . Scanalyzers . | . . . . . Garrison Access 1 | . . . 1 . Terminal Hacks 10 | . 4 4 2 . Record 3 | . . 3 . . Robot Analysis 1 | . . 1 . . Alert Level 2 | . 1 . 1 . Dispatch Records 1 | . 1 . . . Transport Status 2 | . 1 . 1 . Hauler Manifests 1 | . 1 . . . Fabricator Hacks . | . . . . . Repair Station Hacks 4 | . . 4 . . Scan Component 2 | . . 2 . . Repair 2 | . . 2 . . Recycling Unit Hacks 6 | . 6 . . . Recycle Component 2 | . 2 . . . Process 2 | . 2 . . . Report Inventory 1 | . 1 . . . Retrieve Matter 1 | . 1 . . . Scanalyzer . | . . . . . Garrison Access Hacks 1 | . . . 1 . Seal Access 1 | . . . 1 . Unauthorized Hacks . | . . . . . Terminals . | . . . . . Fabricators . | . . . . . Repair Stations . | . . . . . Recycling Units . | . . . . . Scanalyzers . | . . . . . Garrison Access . | . . . . . Data Cores Recovered . | . . . . . Used . | . . . . . Hacking Detections 6 | . 2 3 1 . Full Trace Events . | . . . . . Feedback Events . | . . . . . Feedback Blocked . | . . . . . Robot Schematics Acquired . | . . . . . Robots Built . | . . . . . Authchips . | . . . . . Time . | . . . . . Total Robot Build Rating . | . . . . . Part Schematics Acquired . | . . . . . Parts Built . | . . . . . Authchips . | . . . . . Time . | . . . . . Total Part Build Rating . | . . . . . Parts Repaired 2 | . . 2 . . Time 58 | . . 58 . . Parts Recycled 2 | . 2 . . . Recycled Matter 140 | . 140 . . . Retrieved Matter 140 | . 140 . . . Retrieved Components . | . . . . . Parts Scanalyzed . | . . . . . Part Schematics Acquired . | . . . . . Parts Damaged . | . . . . . Bothacking | -11 -10 -9 -8 -7 ------------ Run | Jun Mat Mat Mat Fac Used RIF Installer . | . . . . . Robots Hacked . | . . . . . Non-combat . | . . . . . Combat . | . . . . . Robot Hacks Applied . | . . . . . Relay Couplers Released . | . . . . . Fabnet Peak Effective % . | . . . . . Robots Rewired . | . . . . . Allies Hacked . | . . . . . Hacks Repelled . | . . . . . Allies | -11 -10 -9 -8 -7 -------- Run | Jun Mat Mat Mat Fac Total Allies . | . . . . . Largest Group . | . . . . . Highest-Rated Group . | . . . . . Highest-Rated Ally . | . . . . . Total Orders . | . . . . . Ally Attacks . | . . . . . Total Damage . | . . . . . Kills . | . . . . . Allies Corrupted . | . . . . . Allies Melted . | . . . . . Intel | -11 -10 -9 -8 -7 ------- Run | Jun Mat Mat Mat Fac Robot Analysis Total 1 | . . 1 . . Derelict Logs Recovered . | . . . . . Drone Launches . | . . . . . Drone Recoveries . | . . . . . Exploration | -11 -10 -9 -8 -7 ------------- Run | Jun Mat Mat Mat Fac Turns Passed 1964 | 79 320 497 435 633 Spaces Moved 1151 | 58 217 211 235 430 Core 176 | 21 . . . 155 Treads . | . . . . . Legs 975 | 37 217 211 235 275 Wheels . | . . . . . Hover . | . . . . . Flight . | . . . . . Fastest Speed 50 | 50 120 120 120 50 Average Speed 112 | 106 120 120 121 100 Slowest Speed 260 | 120 120 190 190 260 Overloaded Moves . | . . . . . Propulsion Burnouts . | . . . . . Robots Hopped . | . . . . . Cave-ins Triggered . | . . . . . Exploration Rate (%) 21 | 4 39 24 26 13 Regions Visited 4 Branch Regions . Pre-discovered Areas . | . . . . . Known Exits Taken . | . . . . . Unknown Exits Taken 4 | 1 1 1 1 . Scrap Searched . | . . . . . Spaces Dug . | . . . . . Terrain Destroyed 1 | . . . . 1 Melee . | . . . . . Projectile 1 | . . . . 1 AOE . | . . . . . Terrain Rammed . | . . . . . Walls Destroyed . | . . . . . Machines Disabled . | . . . . . Actions | -11 -10 -9 -8 -7 --------- Run | Jun Mat Mat Mat Fac Total 1606 | 75 261 387 332 551 Wait 202 | . 21 96 47 38 Move 1147 | 57 216 210 234 430 Hop . | . . . . . Pick Up 50 | 12 8 13 8 9 Fast Attach . | . . . . . Attach 45 | 6 3 12 9 15 Detach 6 | . . 3 2 1 Swap . | . . . . . Drop 21 | . 4 5 4 8 Fire 133 | . 9 48 27 49 Melee . | . . . . . Ram 1 | . . . . 1 Kick 1 | . . . 1 . Crush . | . . . . . Escape Stasis . | . . . . . Rewire . | . . . . . Trap . | . . . . . Miscellaneous . | . . . . . Route ------- -11/Junkyard -10/Materials -9/Materials -8/Materials -7/Factory History --------- Turn | Location | Event 2 | -11/Junkyard | Met Revision 17 23 | -11/Junkyard | Discovered new exit (range 16) 80 | -11/Junkyard | Entered Materials 318 | -10/Materials | Build established: Mutant 337 | -10/Materials | Discovered new exit (range 14) 400 | -10/Materials | Entered another Materials area 400 | -9/Materials | Evolved 2 slots: Propulsion x2 739 | -9/Materials | Discovered new exit (range 16) 825 | -9/Materials | Repaired Aluminum Leg 858 | -9/Materials | Repaired Med. Armor Plating 897 | -9/Materials | Entered another Materials area 897 | -8/Materials | Evolved 2 slots: Power x1, Utility x1 1016 | -8/Materials | Build established: Scavenger-Mutant 1308 | -8/Materials | Discovered new exit (range 16) 1332 | -8/Materials | Entered Factory 1332 | -7/Factory | Evolved 2 slots: Power x1, Weapon x1 1859 | -7/Factory | Core integrity fell below 50% 1884 | -7/Factory | Lost 8 parts (2p2n1u3w) 1933 | -7/Factory | Core integrity fell below 20% 1962 | -7/Factory | Lost 4 parts (2p1u1w) 1965 | -7/Factory | Destroyed by S-27 Virus with Autogun Last Messages --------------- 01924_ Lgt. Ion Engine destroyed. 01926_ Mic. Nuclear Core destroyed. 01930_ Y-54 Guardian heat spikes uncontrollably. 01931_ Lgt. Armor Plating destroyed. 01931_ Y-54 Guardian critical meltdown. 01931_ Imp. Heat Sink melted. 01933_ S-27 Virus destroyed. 01934_ Plasma Cannon broken. 01934_ Overheating: Short circuit. 01935_ Dropped Sml. Storage Unit. 01936_ Dropped Broken Plasma Cannon. 01936_ Dropped Lgt. Nuclear Core. 01937_ Acquired Lgt. Nuclear Core. 01939_ Acquired 27 matter. 01947_ >> Machine Analyzer network decryption results: 01947_ Fabricator x2 01958_ W-25 Informer sends out distress signal. 01959_ Slammed into U-05 Engineer. 01961_ T-07 Excavator destroyed. 01963_ K-01 Serf collects debris. Map ----- +----------------------------------------------------+ | ?????????????????????????????????????????????????? | | ?????????????????????????????????????????????????? | | ?????????????????????????????????????????????????? | | ?????????????????????????????????????????????????? | | ?????????????????????????????????????????????????? | | ?????????????????????????????????????????????????? | | ?????????????????????????????????????????????????? | | ?????????????????????????????????????????????????? | | ?????????????????????????????????????????????????? | | ?????????????????????????????????????????????????? | | ??????????????????????? ??????????????????????? | | ?????????????????????# ??????????????????????? | | ????????????????????## ??????????????????????? | | ????????????????????# *??????????????????????? | | ????????????????????# *??????????????????????? | | ????????????????????# *??????????????????????? | | ????????????????????# ??????????????????????? | | ????????????????????# ??????????????????????? | | ????????????????????# #??????????????????????? | | ????????????????????# #??????????????????????? | | ????????????????????# #??????????????????????? | | ????????????????????# #??????????????????????? | | ????????????????????# #??????????????????????? | | ????????????????????+ +????????????########??? | | ????????????????????# #????????????# [[!#??? | | ????????????????????# @############## [[!#??? | | ????????????????????# # # [!!#??? | | ????????????"S??????# r #= ! # #??? | | ????????????"""?????# # # #??? | | ?????????????""?????# # # ??### | | ????????????????????+ k # """ ###+##### | | ????????????????????# # """ + / | | ????????????????????# # """ """ ### # | | ????????????????????# =%=# """ #?# # | | ????????????????????# # """ " #?# # | | ??????????????####### # """ "F" #?# # | | ?????????? s# """ """ #?# + | | ?????????????######## + #?# # | | ?????????????? ???# ##############?# # | | ????????????? ??# #??????????????# # | | ?????????????? ??# #??????????????# ^ # | | ?????????????? ?# #??????????????# # | | ??????????????? # #??????????????# ### | | ????????????????? # +??????"""""""?# # | | ??????????????????? + #??????"""""""?+ + | | ??????????????????? # #??????"""""""?# # | | ?????????????????? # #??????"""""""?# # " | | ????????????????? ?# ################ # " | | ????????????????????# ^ # " | | ????????????????????# # " | +----------------------------------------------------+ Best States ------------- Heat Dissipation 44 Energy Generation 25 Energy Capacity 315 Matter Stores 300 Matter Capacity 300 Sight Range 16 Terrain Scan Density 10 Armor Coverage 450 Evasion (%) 55 Kinecelleration 30 Item Schematics ----------------- None Robot Schematics ------------------ None Fabricated ------------ Nothing Alien Tech Used ----------------- None Achievements -------------- None Challenges ------------ None Game ------ Seed ArchitectLargeClaymores Manual? 0 Play Time 00:24:57 Cumulative 13.6 hours Start 2023.12.10 @ 22:46:35 End 2023.12.10 @ 23:10:37 Sessions 1 Manual Loads 0 Difficulty Rogue Special Mode None Game No. 11 Rogue 7 Adventurer 4 Explorer 0 Win Type - Total 0 Types 0/0/0/0/0/0/0/0/0 Lore% 16 Gallery% 30 Achievement% 19 Wizard Run 0 Options --------- ASCII 0 Keyboard 0 Movement Numpad Keybinds 0 Fullscreen 1 Font 24/Terminus Map View 76x50 Tactical HUD 1 Map Filters NONE Filters NONE Steam 1 RUN: 3bfda0de-dc9e-474a-9b0c-7c24a0aef6f6